fUSD/lending_fUSD_20250110
["ID","MTS","AMOUNT","RATE_DAILY","PERIOD"]
[348441405,1736530237136,-514.81581098,9.555e-05,2]
[348441406,1736530237145,-500.0,9.555e-05,2]
[348441407,1736530237155,-849.59,9.555e-05,2]
[348441408,1736530237164,-500.0,9.555e-05,2]
[348441409,1736530237174,-500.0,9.555e-05,2]
[348441410,1736530237184,-413.20426315,9.555e-05,2]
[348441411,1736530237193,-225.30223695,9.555e-05,2]
[348441412,1736530237203,-500.0,9.555e-05,2]
[348441413,1736530237213,-500.0,9.555e-05,2]
[348441414,1736530237223,-593.52884189,9.555e-05,2]
[348441415,1736530237232,-529.96,9.555e-05,2]
[348441416,1736530237241,-500.35144476,9.555e-05,2]
[348441417,1736530237255,-500.0,9.555e-05,2]
[348441418,1736530237265,-500.0,9.555e-05,2]
[348441419,1736530237276,-560.63,9.555e-05,2]
[348441420,1736530237286,-500.0,9.555e-05,2]
[348441421,1736530237296,-532.25698777,9.555e-05,2]
[348441422,1736530237306,-500.0,9.555e-05,2]
[348441423,1736530237316,-641.64,9.555e-05,2]
[348441424,1736530237326,-500.38570099,9.555e-05,2]
[348441425,1736530237336,-500.0,9.555e-05,2]
[348441426,1736530237347,-500.0,9.555e-05,2]
[348441427,1736530237357,-500.0,9.555e-05,2]
[348441428,1736530237367,-500.0,9.555e-05,2]
[348441429,1736530237376,-500.54237802,9.555e-05,2]
[348441430,1736530237387,-500.0,9.555e-05,2]
[348441431,1736530237397,-500.0,9.555e-05,2]
[348441432,1736530237407,-411.27693438,9.555e-05,2]
[348441433,1736530237418,-640.45138983,9.555e-05,2]
[348441434,1736530237428,-501.10507553,9.555e-05,2]
[348441435,1736530237440,-500.0,9.555e-05,2]
[348441436,1736530237450,-500.0,9.555e-05,2]
[348441437,1736530237461,-500.0,9.555e-05,2]
[348441438,1736530237471,-500.0,9.555e-05,2]
[348441439,1736530237481,-561.59231345,9.555e-05,2]
[348441440,1736530237491,-500.37039872,9.555e-05,2]
[348441441,1736530237501,-585.51,9.555e-05,2]
[348441442,1736530237512,-500.0,9.555e-05,2]
[348441443,1736530237521,-500.0,9.555e-05,2]
[348441444,1736530237531,-501.37500858,9.555e-05,2]
[348441445,1736530237541,-1470.81,9.555e-05,2]
[348441446,1736530237550,-500.0,9.555e-05,2]
[348441447,1736530237559,-500.0,9.555e-05,2]
[348441448,1736530237568,-500.0,9.555e-05,2]
[348441449,1736530237580,-504.42470318,9.555e-05,2]
[348441450,1736530237591,-500.0,9.555e-05,2]
[348441451,1736530237825,-500.0,9.555e-05,2]
[348441452,1736530237836,-500.0,9.555e-05,2]
[348441453,1736530237847,-500.0,9.555e-05,2]
[348441454,1736530237857,-500.0,9.555e-05,2]
[348441455,1736530237867,-500.0,9.555e-05,2]
[348441456,1736530237877,-500.0,9.555e-05,2]
[348441457,1736530237887,-1556.85,9.555e-05,2]
[348441458,1736530237897,-500.0,9.555e-05,2]
[348441459,1736530237907,-585.53,9.555e-05,2]
[348441460,1736530237916,-621.19,9.555e-05,2]
[348441461,1736530237926,-500.0,9.555e-05,2]
[348441462,1736530237935,-500.0,9.555e-05,2]
[348441463,1736530237946,-503.3508729,9.555e-05,2]
[348441464,1736530237955,-994.64,9.555e-05,2]
[348441465,1736530237963,-500.0,9.555e-05,2]
[348441466,1736530237972,-500.0,9.555e-05,2]
[348441467,1736530237981,-500.0,9.555e-05,2]
[348441468,1736530237991,-500.0,9.555e-05,2]
[348441469,1736530238000,-500.0,9.555e-05,2]
[348441470,1736530238013,-500.0,9.555e-05,2]
[348441471,1736530238023,-500.0,9.555e-05,2]
[348441472,1736530238032,-1274.5058648,9.555e-05,3]
[348441473,1736530238043,-500.0,9.555e-05,2]
[348441474,1736530238053,-500.0,9.555e-05,2]
[348441475,1736530238063,-1828.62,9.555e-05,2]
[348441476,1736530238072,-500.0,9.555e-05,2]
[348441477,1736530238082,-501.02285537,9.555e-05,2]
[348441478,1736530238092,-502.73375582,9.555e-05,2]
[348441479,1736530238102,-500.0,9.555e-05,2]
[348441480,1736530238112,-500.0,9.555e-05,2]
[348441481,1736530238122,-501.51411238,9.555e-05,2]
[348441482,1736530238132,-590.34,9.555e-05,2]
[348441483,1736530238142,-2183.28,9.555e-05,2]
[348441485,1736530238152,-500.0,9.555e-05,2]
[348441486,1736530238162,-2378.34,9.555e-05,2]
[348441487,1736530238171,-500.0,9.555e-05,2]
[348441488,1736530238181,-500.0,9.555e-05,2]
[348441489,1736530238191,-500.0,9.555e-05,2]
[348441490,1736530238200,-1386.18,9.555e-05,2]
[348441491,1736530238210,-501.46323877,9.555e-05,2]
[348441493,1736530238220,-500.84905799,9.555e-05,2]
[348441496,1736530238235,-500.0,9.555e-05,2]
[348441498,1736530238245,-369.95726392,9.555e-05,2]
[348441499,1736530238256,-500.0,9.555e-05,2]
[348441500,1736530238266,-500.0,9.555e-05,2]
[348441501,1736530238276,-826.56,9.555e-05,2]
[348441503,1736530238286,-554.49,9.555e-05,2]
[348441505,1736530238296,-663.2,9.555e-05,2]
[348441507,1736530238306,-500.0,9.555e-05,2]
[348441508,1736530238316,-211.46117744,9.555e-05,2]
[348441509,1736530238326,-500.0,9.555e-05,2]
[348441510,1736530238336,-516.31,9.555e-05,2]
[348441511,1736530238345,-500.96982309,9.555e-05,2]
[348441512,1736530238355,-548.39,9.555e-05,2]
[348441513,1736530238365,-2169.87,9.555e-05,2]
[348441514,1736530238374,-500.0,9.555e-05,2]
[348441515,1736530238385,-500.65681682,9.555e-05,2]
[348441516,1736530238395,-500.0,9.555e-05,2]
[348441517,1736530238405,-500.0,9.555e-05,2]
[348441518,1736530238414,-500.0,9.555e-05,2]
[348441519,1736530238424,-500.0,9.555e-05,2]
[348441520,1736530238433,-500.0,9.555e-05,2]
[348441521,1736530238443,-360.53425979,9.555e-05,2]
[348441522,1736530238453,-505.19189071,9.555e-05,2]
[348441523,1736530238463,-668.22,9.555e-05,2]
[348441524,1736530238472,-2415.26,9.555e-05,2]
[348441525,1736530238482,-872.29,9.556e-05,2]
[348441526,1736530238491,-1769.32,9.556e-05,2]
[348441527,1736530238500,-777.84,9.556e-05,2]
[348441528,1736530238515,-500.0,9.556e-05,2]
[348441529,1736530238524,-633.316716,9.556e-05,2]
[348441530,1736530238534,-662.063092,9.556e-05,2]
[348441531,1736530238544,-2453.75,9.556e-05,2]
[348441532,1736530238554,-582.81,9.556e-05,2]
[348441533,1736530238562,-500.0,9.556e-05,2]
[348441534,1736530238572,-500.0,9.556e-05,2]
[348441535,1736530238584,-2105.57,9.556e-05,2]
[348441536,1736530238594,-728.88,9.556e-05,2]
[348441537,1736530238604,-500.0,9.556e-05,2]
[348441538,1736530238614,-500.0,9.556e-05,2]
[348441539,1736530238624,-500.0,9.556e-05,2]
[348441540,1736530238634,-500.0,9.556e-05,2]
[348441541,1736530238645,-500.0,9.556e-05,2]
[348441542,1736530238658,-500.0,9.556e-05,2]
[348441543,1736530238671,-500.0,9.556e-05,2]
[348441544,1736530238681,-500.0,9.556e-05,2]
[348441545,1736530238692,-500.0,9.556e-05,2]
[348441546,1736530238704,-500.0,9.556e-05,2]
[348441547,1736530238716,-500.0,9.556e-05,2]
[348441548,1736530238727,-500.0,9.556e-05,2]
[348441549,1736530238738,-500.0,9.556e-05,2]
[348441550,1736530238756,-500.0,9.556e-05,2]
[348441551,1736530238766,-500.0,9.556e-05,2]
[348441552,1736530238776,-500.0,9.556e-05,2]
[348441553,1736530238785,-500.0,9.556e-05,2]
[348441554,1736530238796,-500.0,9.556e-05,2]
[348441555,1736530238806,-500.0,9.556e-05,2]
[348441556,1736530238817,-159.59736848,9.556e-05,2]
[348441557,1736530238826,-500.0,9.556e-05,2]
[348441558,1736530238837,-500.0,9.556e-05,2]
[348441559,1736530238847,-500.0,9.556e-05,2]
[348441560,1736530238857,-500.0,9.556e-05,2]
[348441561,1736530238867,-500.0,9.556e-05,2]
[348441563,1736530238877,-500.0,9.556e-05,2]
[348441565,1736530238885,-500.0,9.556e-05,2]
[348441567,1736530238893,-500.0,9.556e-05,2]
[348441569,1736530238902,-500.0,9.556e-05,2]
[348441571,1736530238912,-707.28,9.556e-05,2]
[348441573,1736530238922,-500.0,9.556e-05,2]
[348441574,1736530238932,-500.0,9.556e-05,2]
[348441576,1736530238942,-1060.5,9.556e-05,2]
[348441577,1736530238951,-596.55,9.556e-05,2]
[348441578,1736530238961,-500.0,9.556e-05,2]
[348441580,1736530238972,-515.15,9.556e-05,2]
[348441581,1736530238982,-1281.2,9.556e-05,2]
[348441582,1736530238995,-601.88,9.556e-05,2]
[348441583,1736530239009,-544.97,9.556e-05,2]
[348441584,1736530239019,-500.0,9.556e-05,2]
[348441585,1736530239028,-500.0,9.556e-05,2]
[348441586,1736530239038,-500.0,9.556e-05,2]
[348441587,1736530239048,-500.0,9.556e-05,2]
[348441588,1736530239058,-823.36,9.556e-05,2]
[348441589,1736530239067,-500.0,9.556e-05,2]
[348441590,1736530239077,-500.0,9.556e-05,2]
[348441591,1736530239086,-500.0,9.556e-05,2]
[348441592,1736530239096,-500.0,9.556e-05,2]
[348441593,1736530239105,-500.0,9.556e-05,2]
[348441594,1736530239115,-500.0,9.556e-05,2]
[348441595,1736530239124,-1706.31,9.556e-05,2]
[348441596,1736530239134,-500.0,9.556e-05,2]
[348441597,1736530239144,-500.0,9.556e-05,2]
[348441598,1736530239154,-500.0,9.556e-05,2]
[348441599,1736530239163,-1164.94,9.556e-05,2]
[348441600,1736530239173,-500.0,9.556e-05,2]
[348441601,1736530239182,-796.44,9.556e-05,2]
[348441602,1736530239192,-500.0,9.556e-05,2]
[348441603,1736530239201,-500.0,9.556e-05,2]
[348441604,1736530239211,-500.0,9.556e-05,2]
[348441605,1736530239220,-500.0,9.556e-05,2]
[348441606,1736530239230,-1144.08,9.556e-05,2]
[348441607,1736530239240,-500.0,9.556e-05,2]
[348441608,1736530239249,-2817.6,9.556e-05,2]
[348441609,1736530239274,-562.68,9.556e-05,2]
[348441610,1736530239285,-500.0,9.556e-05,2]
[348441611,1736530239295,-654.13,9.556e-05,2]
[348441612,1736530239306,-2670.51,9.556e-05,2]
[348441613,1736530239317,-500.0,9.556e-05,2]
[348441614,1736530239327,-1921.75,9.556e-05,2]
[348441615,1736530239338,-535.33,9.556e-05,2]
[348441616,1736530239348,-991.35,9.556e-05,2]
[348441617,1736530239359,-621.01,9.556e-05,2]
[348441618,1736530239369,-500.0,9.556e-05,2]
[348441619,1736530239380,-731.03,9.556e-05,2]
[348441620,1736530239390,-700.57,9.556e-05,2]
[348441621,1736530239400,-1998.71,9.556e-05,2]
[348441622,1736530239411,-500.0,9.556e-05,2]
[348441623,1736530239421,-500.0,9.556e-05,2]
[348441624,1736530239431,-4493.71,9.556e-05,2]
[348441625,1736530239441,-500.0,9.556e-05,2]
[348441626,1736530239451,-500.0,9.556e-05,2]
[348441627,1736530239461,-552.25,9.556e-05,2]
[348441628,1736530239472,-502.88417109,9.556e-05,2]
[348441629,1736530239482,-614.14,9.556e-05,2]
[348441630,1736530239493,-1341.1,9.556e-05,2]
[348441631,1736530239504,-937.3,9.556e-05,2]
[348441632,1736530239515,-500.0,9.556e-05,2]
[348441633,1736530239525,-531.66,9.556e-05,2]
[348441634,1736530239535,-837.66,9.556e-05,2]
[348441635,1736530239545,-1092.22,9.556e-05,2]
[348441636,1736530239555,-500.0,9.556e-05,2]
[348441637,1736530239565,-500.0,9.556e-05,2]
[348441638,1736530239576,-614.23,9.556e-05,2]
[348441639,1736530239590,-500.0,9.556e-05,2]
[348441640,1736530239600,-500.0,9.556e-05,2]
[348441641,1736530239610,-2618.1,9.556e-05,2]
[348441642,1736530239620,-2552.37,9.556e-05,2]
[348441643,1736530239630,-500.0,9.556e-05,2]
[348441644,1736530239640,-500.0,9.556e-05,2]
[348441645,1736530239650,-793.85,9.556e-05,2]
[348441646,1736530239661,-500.0,9.556e-05,2]
[348441647,1736530239671,-1026.85,9.556e-05,2]
[348441648,1736530239681,-500.0,9.556e-05,2]
[348441649,1736530239691,-1480.34,9.556e-05,2]
[348441650,1736530239701,-1480.34,9.556e-05,2]
[348441651,1736530239711,-636.17,9.556e-05,2]
[348441652,1736530239721,-500.0,9.557e-05,2]
[348441653,1736530239730,-500.0,9.557e-05,2]
[348441654,1736530239740,-667.55,9.557e-05,2]
[348441655,1736530239750,-939.02,9.557e-05,2]
[348441656,1736530239768,-618.39,9.557e-05,2]
[348441657,1736530239778,-1000.0,9.557e-05,2]
[348441658,1736530239789,-692.39,9.557e-05,2]
[348441659,1736530239799,-500.0,9.557e-05,2]
[348441660,1736530239810,-1745.91,9.557e-05,2]
[348441661,1736530239821,-2946.71,9.557e-05,2]
[348441662,1736530239833,-989.06,9.557e-05,2]
[348441663,1736530239843,-1181.84,9.557e-05,2]
[348441664,1736530239854,-675.02,9.558e-05,2]
[348441665,1736530239865,-500.0,9.558e-05,2]
[348441666,1736530239875,-734.59,9.558e-05,2]
[348441667,1736530239886,-500.0,9.558e-05,2]
[348441668,1736530239897,-516.56,9.558e-05,2]
[348441669,1736530239907,-510.01,9.558e-05,2]
[348441670,1736530239918,-914.35,9.558e-05,2]
[348441671,1736530239928,-1036.94,9.558e-05,2]
[348441672,1736530239938,-931.65,9.558e-05,2]
[348441673,1736530239949,-1855.15,9.558e-05,2]
[348441674,1736530239959,-3490.04,9.558e-05,2]
[348441675,1736530239969,-605.78,9.558e-05,2]
[348441676,1736530239979,-500.0,9.558e-05,2]
[348441677,1736530239990,-500.0,9.558e-05,2]
[348441678,1736530240000,-554.3,9.558e-05,2]
[348441679,1736530240015,-609.2,9.558e-05,2]
[348441680,1736530240026,-1789.72,9.558e-05,2]
[348441681,1736530240037,-1209.32,9.558e-05,2]
[348441682,1736530240048,-19600.76253753,9.67e-05,2]
[348441686,1736530240555,-500.0,9.281e-05,2]
[348441687,1736530240565,-24.7693386,9.67e-05,2]
[348441688,1736530240578,-519.00231815,9.67e-05,2]
[348441689,1736530240592,-3056.86518747,9.67e-05,2]
[348441690,1736530240604,-330.0,9.67e-05,2]
[348441691,1736530240697,-6468.59061825,9.67e-05,2]
[348441692,1736530240706,-9999.99,9.67e-05,2]
[348441693,1736530240716,-150.0,9.685e-05,2]
[348441694,1736530240725,-150.0,9.691e-05,2]
[348441695,1736530240735,-255.0,9.692e-05,2]
[348441696,1736530240744,-14821.0148,9.73e-05,2]
[348441697,1736530240755,-500.0,9.731e-05,2]
[348441698,1736530240764,-150.0,9.785e-05,2]
[348441699,1736530240774,-150.0,9.797e-05,2]
[348441700,1736530240783,-500.0,9.808e-05,2]
[348441701,1736530240792,-548.55,9.829e-05,2]
[348441702,1736530240802,-500.0,9.829e-05,2]
[348441703,1736530240812,-500.0,9.829e-05,2]
[348441704,1736530240823,-500.0,9.829e-05,2]
[348441705,1736530240834,-500.0,9.829e-05,2]
[348441706,1736530240845,-500.0,9.829e-05,2]
[348441707,1736530240858,-500.0,9.829e-05,2]
[348441708,1736530240868,-500.0,9.829e-05,2]
[348441709,1736530240878,-500.0,9.829e-05,2]
[348441710,1736530240890,-500.0,9.829e-05,2]
[348441711,1736530240900,-500.0,9.829e-05,2]
[348441712,1736530240910,-500.0,9.829e-05,2]
[348441713,1736530240921,-500.0,9.829e-05,2]
[348441714,1736530240931,-481.18359853,9.829e-05,2]
[348441715,1736530240942,-500.0,9.829e-05,2]
[348441716,1736530240951,-500.0,9.829e-05,2]
[348441717,1736530240962,-500.0,9.829e-05,2]
[348441718,1736530240972,-500.0,9.829e-05,2]
[348441719,1736530240981,-500.0,9.829e-05,2]
[348441720,1736530240991,-500.0,9.829e-05,2]
[348441721,1736530241001,-523.43,9.829e-05,2]
[348441722,1736530241014,-500.0,9.829e-05,2]
[348441723,1736530241024,-500.0,9.829e-05,2]
[348441724,1736530241034,-636.37,9.829e-05,2]
[348441725,1736530241043,-500.0,9.829e-05,2]
[348441726,1736530241053,-500.0,9.829e-05,2]
[348441727,1736530241062,-500.0,9.829e-05,2]
[348441728,1736530241072,-500.0,9.829e-05,2]
[348441729,1736530241081,-500.0,9.829e-05,2]
[348441730,1736530241091,-500.0,9.829e-05,2]
[348441731,1736530241102,-521.71,9.829e-05,2]
[348441732,1736530241113,-500.0,9.829e-05,2]
[348441733,1736530241123,-261.94338261,9.829e-05,2]
[348441734,1736530241134,-500.0,9.829e-05,2]
[348441735,1736530241144,-500.0,9.829e-05,2]
[348441736,1736530241155,-584.47,9.829e-05,2]
[348441737,1736530241166,-500.0,9.829e-05,2]
[348441738,1736530241178,-500.0,9.829e-05,2]
[348441739,1736530241188,-500.0,9.829e-05,2]
[348441740,1736530241200,-500.0,9.829e-05,2]
[348441741,1736530241213,-500.0,9.829e-05,2]
[348441742,1736530241223,-500.0,9.829e-05,2]
[348441743,1736530241233,-500.0,9.829e-05,2]
[348441744,1736530241243,-500.0,9.829e-05,2]
[348441745,1736530241258,-500.0,9.829e-05,2]
[348441746,1736530241268,-500.0,9.829e-05,2]
[348441747,1736530241277,-500.0,9.829e-05,2]
[348441748,1736530241287,-501.85,9.829e-05,2]
[348441749,1736530241297,-500.0,9.829e-05,2]
[348441750,1736530241307,-500.0,9.829e-05,2]
[348441751,1736530241316,-500.0,9.829e-05,2]
[348441752,1736530241326,-531.89,9.829e-05,2]
[348441753,1736530241337,-500.0,9.829e-05,2]
[348441754,1736530241346,-1431.09,9.829e-05,2]
[348441755,1736530241357,-500.0,9.829e-05,2]
[348441756,1736530241366,-500.0,9.829e-05,2]
[348441757,1736530241375,-500.0,9.829e-05,2]
[348441758,1736530241385,-500.0,9.829e-05,2]
[348441759,1736530241395,-500.0,9.829e-05,2]
[348441760,1736530241404,-500.0,9.829e-05,2]
[348441761,1736530241414,-509.61,9.829e-05,2]
[348441762,1736530241423,-606.21,9.829e-05,2]
[348441763,1736530241433,-1131.44,9.829e-05,2]
[348441764,1736530241442,-500.0,9.829e-05,2]
[348441765,1736530241452,-500.0,9.829e-05,2]
[348441766,1736530241461,-849.59,9.829e-05,2]
[348441767,1736530241475,-500.0,9.829e-05,2]
[348441768,1736530241486,-529.96,9.829e-05,2]
[348441769,1736530241496,-560.63,9.829e-05,2]
[348441770,1736530241506,-206.32343843,9.829e-05,2]
[348441771,1736530241515,-641.64,9.829e-05,2]
[348441772,1736530241525,-500.0,9.829e-05,2]
[348441773,1736530241535,-502.15216691,9.829e-05,2]
[348441774,1736530241544,-500.0,9.829e-05,2]
[348441775,1736530241553,-585.51,9.829e-05,2]
[348441776,1736530241566,-500.0,9.829e-05,2]
[348441777,1736530241576,-1470.81,9.829e-05,2]
[348441778,1736530241589,-500.0,9.829e-05,2]
[348441779,1736530241599,-500.0,9.829e-05,2]
[348441780,1736530241608,-500.0,9.829e-05,2]
[348441781,1736530241618,-500.0,9.829e-05,2]
[348441782,1736530241627,-1556.85,9.829e-05,2]
[348441783,1736530241639,-585.53,9.829e-05,2]
[348441784,1736530241649,-621.19,9.829e-05,2]
[348441785,1736530241659,-994.64,9.829e-05,2]
[348441786,1736530241669,-503.14506248,9.829e-05,2]
[348441787,1736530241681,-500.0,9.829e-05,2]
[348441788,1736530241691,-500.0,9.829e-05,2]
[348441789,1736530241701,-500.0,9.829e-05,2]
[348441790,1736530241711,-1828.62,9.829e-05,2]
[348441791,1736530241721,-500.0,9.829e-05,2]
[348441792,1736530241731,-500.0,9.829e-05,2]
[348441793,1736530241742,-500.0,9.829e-05,2]
[348441794,1736530241756,-590.34,9.829e-05,2]
[348441795,1736530241766,-2183.28,9.829e-05,2]
[348441796,1736530241775,-2378.34,9.829e-05,2]
[348441797,1736530241784,-500.0,9.829e-05,2]
[348441798,1736530241794,-500.0,9.829e-05,2]
[348441799,1736530241803,-500.0,9.829e-05,2]
[348441800,1736530241812,-1386.18,9.829e-05,2]
[348441801,1736530241824,-500.0,9.829e-05,2]
[348441802,1736530241835,-500.0,9.829e-05,2]
[348441803,1736530241845,-826.56,9.829e-05,2]
[348441804,1736530241855,-554.49,9.829e-05,2]
[348441805,1736530241864,-663.2,9.829e-05,2]
[348441806,1736530241874,-500.0,9.829e-05,2]
[348441807,1736530241883,-548.39,9.829e-05,2]
[348441808,1736530241893,-2169.87,9.829e-05,2]
[348441809,1736530241903,-500.0,9.829e-05,2]
[348441810,1736530241916,-500.0,9.829e-05,2]
[348441811,1736530241926,-500.0,9.829e-05,2]
[348441812,1736530241936,-500.0,9.829e-05,2]
[348441813,1736530241946,-668.22,9.829e-05,2]
[348441814,1736530241955,-2415.26,9.829e-05,2]
[348441815,1736530241966,-872.29,9.83e-05,2]
[348441816,1736530241975,-1769.32,9.83e-05,2]
[348441817,1736530241985,-777.84,9.83e-05,2]
[348441818,1736530241994,-500.0,9.83e-05,2]
[348441819,1736530242004,-633.316716,9.83e-05,2]
[348441820,1736530242014,-662.063092,9.83e-05,2]
[348441821,1736530242024,-2453.75,9.83e-05,2]
[348441822,1736530242033,-582.81,9.83e-05,2]
[348441823,1736530242042,-500.0,9.83e-05,2]
[348441824,1736530242052,-500.0,9.83e-05,2]
[348441825,1736530242064,-2105.57,9.83e-05,2]
[348441826,1736530242075,-728.88,9.83e-05,2]
[348441827,1736530242086,-500.0,9.83e-05,2]
[348441828,1736530242095,-153.829371,9.83e-05,2]
[348441829,1736530242105,-500.0,9.83e-05,2]
[348441830,1736530242115,-486.66953826,9.83e-05,2]
[348441831,1736530242125,-500.0,9.83e-05,2]
[348441832,1736530242135,-500.0,9.83e-05,2]
[348441833,1736530242145,-500.0,9.83e-05,2]
[348441834,1736530242154,-500.0,9.83e-05,2]
[348441835,1736530242164,-500.0,9.83e-05,2]
[348441836,1736530242174,-500.0,9.83e-05,2]
[348441837,1736530242184,-500.0,9.83e-05,2]
[348441838,1736530242198,-500.0,9.83e-05,2]
[348441839,1736530242211,-500.0,9.83e-05,2]
[348441840,1736530242224,-500.0,9.83e-05,2]
[348441841,1736530242233,-500.0,9.83e-05,2]
[348441842,1736530242243,-579.84020836,9.83e-05,2]
[348441843,1736530242257,-500.0,9.83e-05,2]
[348441844,1736530242267,-500.0,9.83e-05,2]
[348441845,1736530242277,-500.0,9.83e-05,2]
[348441846,1736530242286,-500.0,9.83e-05,2]
[348441847,1736530242296,-500.0,9.83e-05,2]
[348441848,1736530242306,-500.0,9.83e-05,2]
[348441849,1736530242315,-500.0,9.83e-05,2]
[348441850,1736530242325,-500.0,9.83e-05,2]
[348441851,1736530242334,-500.0,9.83e-05,2]
[348441852,1736530242344,-500.0,9.83e-05,2]
[348441853,1736530242354,-500.0,9.83e-05,2]
[348441854,1736530242364,-1060.5,9.83e-05,2]
[348441855,1736530242373,-596.55,9.83e-05,2]
[348441856,1736530242384,-500.0,9.83e-05,2]
[348441857,1736530242395,-515.15,9.83e-05,2]
[348441858,1736530242404,-1281.2,9.83e-05,2]
[348441859,1736530242413,-601.88,9.83e-05,2]
[348441860,1736530242423,-544.97,9.83e-05,2]
[348441861,1736530242433,-500.0,9.83e-05,2]
[348441862,1736530242443,-500.0,9.83e-05,2]
[348441863,1736530242453,-500.0,9.83e-05,2]
[348441864,1736530242463,-615.64879953,9.83e-05,2]
[348441865,1736530242472,-823.36,9.83e-05,2]
[348441866,1736530242482,-500.0,9.83e-05,2]
[348441867,1736530242492,-500.0,9.83e-05,2]
[348441868,1736530242501,-554.0,9.83e-05,2]
[348441869,1736530242515,-500.0,9.83e-05,2]
[348441870,1736530242524,-500.0,9.83e-05,2]
[348441871,1736530242534,-500.0,9.83e-05,2]
[348441872,1736530242543,-1706.31,9.83e-05,2]
[348441873,1736530242553,-500.0,9.83e-05,2]
[348441874,1736530242562,-500.0,9.83e-05,2]
[348441875,1736530242573,-500.0,9.83e-05,2]
[348441876,1736530242584,-1164.94,9.83e-05,2]
[348441877,1736530242595,-500.0,9.83e-05,2]
[348441878,1736530242604,-796.44,9.83e-05,2]
[348441879,1736530242614,-500.0,9.83e-05,2]
[348441880,1736530242623,-500.0,9.83e-05,2]
[348441881,1736530242634,-500.0,9.83e-05,2]
[348441882,1736530242643,-500.0,9.83e-05,2]
[348441883,1736530242653,-1144.08,9.83e-05,2]
[348441884,1736530242664,-500.0,9.83e-05,2]
[348441885,1736530242673,-2817.6,9.83e-05,2]
[348441886,1736530242682,-562.68,9.83e-05,2]
[348441887,1736530242692,-500.0,9.83e-05,2]
[348441888,1736530242701,-654.13,9.83e-05,2]
[348441889,1736530242711,-2670.51,9.83e-05,2]
[348441890,1736530242720,-500.0,9.83e-05,2]
[348441891,1736530242730,-1921.75,9.83e-05,2]
[348441892,1736530242739,-535.33,9.83e-05,2]
[348441893,1736530242748,-991.35,9.83e-05,2]
[348441894,1736530242761,-621.01,9.83e-05,2]
[348441895,1736530242771,-500.0,9.83e-05,2]
[348441896,1736530242780,-731.03,9.83e-05,2]
[348441897,1736530242789,-1998.71,9.83e-05,2]
[348441898,1736530242798,-500.0,9.83e-05,2]
[348441899,1736530242808,-500.0,9.83e-05,2]
[348441900,1736530242817,-4493.71,9.83e-05,2]
[348441901,1736530242827,-500.0,9.83e-05,2]
[348441902,1736530242836,-552.25,9.83e-05,2]
[348441903,1736530242845,-614.14,9.83e-05,2]
[348441904,1736530242855,-1341.1,9.83e-05,2]
[348441905,1736530242864,-937.3,9.83e-05,2]
[348441906,1736530242873,-500.0,9.83e-05,2]
[348441907,1736530242882,-531.66,9.83e-05,2]
[348441908,1736530242891,-837.66,9.83e-05,2]
[348441909,1736530242900,-1092.22,9.83e-05,2]
[348441910,1736530242909,-500.0,9.83e-05,2]
[348441911,1736530242919,-500.0,9.83e-05,2]
[348441912,1736530242928,-614.23,9.83e-05,2]
[348441913,1736530242937,-500.0,9.83e-05,2]
[348441914,1736530242946,-2618.1,9.83e-05,2]
[348441915,1736530242956,-2552.37,9.83e-05,2]
[348441916,1736530242965,-500.0,9.83e-05,2]
[348441917,1736530242976,-500.0,9.83e-05,2]
[348441918,1736530242986,-793.85,9.83e-05,2]
[348441919,1736530242997,-500.0,9.83e-05,2]
[348441920,1736530243007,-1026.85,9.83e-05,2]
[348441921,1736530243017,-500.0,9.83e-05,2]
[348441922,1736530243026,-1480.34,9.83e-05,2]
[348441923,1736530243036,-1480.34,9.83e-05,2]